[Event "*** Biggest EVER Titled Tuesday"]
[Site "Chess.com"]
[Date "2018.04.17"]
[Round "1"]
[White "ahmadzada13"]
[Black "patzerplay"]
[Result "0-1"]
[WhiteElo "2593"]
[BlackElo "2296"]
[TimeControl "180+2"]
[EndTime "13:09:58 PDT"]
[Termination "patzerplay won by resignation"]

1. e4 {[%clk 0:03:01]} 1... c5 {[%clk 0:03:00.8]} 2. Nf3 {[%clk 0:03:01.8]} 2...
d6 {[%clk 0:03:02.2]} 3. d4 {[%clk 0:03:02]} 3... cxd4 {[%clk 0:03:03.7]} 4.
Nxd4 {[%clk 0:03:03.3]} 4... Nf6 {[%clk 0:03:05.3]} 5. Nc3 {[%clk 0:03:04.3]}
5... a6 {[%clk 0:03:06.6]} 6. Bc4 {[%clk 0:03:05.3]} 6... e6 {[%clk 0:03:07.3]}
7. Bb3 {[%clk 0:03:06.3]} 7... Nc6 {[%clk 0:03:08.5]} 8. O-O {[%clk 0:03:06.8]}
8... Na5 {[%clk 0:02:52.2]} 9. Be3 {[%clk 0:03:05.7]} 9... Nxb3 {[%clk
0:02:53.1]} 10. axb3 {[%clk 0:03:05.9]} 10... Be7 {[%clk 0:02:48.9]} 11. f4
{[%clk 0:03:06.5]} 11... O-O {[%clk 0:02:49.2]} 12. Qf3 {[%clk 0:03:07.2]} 12...
Qc7 {[%clk 0:02:48.1]} 13. g4 {[%clk 0:03:06.5]} 13... e5 {[%clk 0:02:44.1]} 14.
Nf5 {[%clk 0:03:03.2]} 14... Bxf5 {[%clk 0:02:36.5]} 15. gxf5 {[%clk 0:02:49.8]}
15... Kh8 {[%clk 0:02:27.3]} 16. Kh1 {[%clk 0:02:49.5]} 16... Qc6 {[%clk
0:02:26.7]} 17. fxe5 {[%clk 0:02:43.6]} 17... dxe5 {[%clk 0:02:27.5]} 18. Bg5
{[%clk 0:02:44.5]} 18... b5 {[%clk 0:02:21.7]} 19. Rf2 {[%clk 0:02:34.1]} 19...
b4 {[%clk 0:02:21.3]} 20. Bxf6 {[%clk 0:02:34.6]} 20... Bxf6 {[%clk 0:02:22.3]}
21. Nd5 {[%clk 0:02:34.1]} 21... a5 {[%clk 0:02:19.2]} 22. Rg1 {[%clk 0:02:34]}
22... Rg8 {[%clk 0:02:17.4]} 23. Rfg2 {[%clk 0:02:34.2]} 23... Rac8 {[%clk
0:02:03.3]} 24. Qh5 {[%clk 0:02:31.7]} 24... Rcf8 {[%clk 0:02:01.1]} 25. Rg3
{[%clk 0:02:31.9]} 25... g6 {[%clk 0:01:48]} 26. Qh6 {[%clk 0:01:57.6]} 26...
Bg7 {[%clk 0:01:24.2]} 27. Qh4 {[%clk 0:01:55.2]} 27... gxf5 {[%clk 0:01:12.5]}
28. R1g2 {[%clk 0:01:11.5]} 28... Re8 {[%clk 0:01:02.5]} 29. Ne7 {[%clk
0:00:17.8]} 29... Rxe7 {[%clk 0:00:57.7]} 30. Qxe7 {[%clk 0:00:17.2]} 30... Qxe4
{[%clk 0:00:58.7]} 31. Qxf7 {[%clk 0:00:09]} 31... Qe1+ {[%clk 0:00:59.3]} 32.
Rg1 {[%clk 0:00:10.1]} 32... Qe4+ {[%clk 0:01:00.6]} 33. R3g2 {[%clk 0:00:11.3]}
33... f4 {[%clk 0:00:56.7]} 34. Rf1 {[%clk 0:00:05.4]} 34... Qc6 {[%clk
0:00:37.2]} 35. h3 {[%clk 0:00:04.1]} 35... Qf6 {[%clk 0:00:16.7]} 36. Qxf6
{[%clk 0:00:04.6]} 36... Bxf6 {[%clk 0:00:18.6]} 37. Rxg8+ {[%clk 0:00:05.8]}
37... Kxg8 {[%clk 0:00:20.5]} 38. Kg2 {[%clk 0:00:07.1]} 38... Kf7 {[%clk
0:00:22.3]} 39. Kf3 {[%clk 0:00:08.5]} 39... Ke6 {[%clk 0:00:23.7]} 40. Ke4
{[%clk 0:00:10.4]} 40... h5 {[%clk 0:00:24.3]} 41. Rd1 {[%clk 0:00:12]} 41...
Kf7 {[%clk 0:00:17.6]} 42. Rd5 {[%clk 0:00:12.6]} 42... Kg6 {[%clk 0:00:19]} 43.
Rxa5 {[%clk 0:00:13.3]} 43... Kg5 {[%clk 0:00:20.9]} 44. Ra8 {[%clk 0:00:13]}
44... Kh4 {[%clk 0:00:19.4]} 45. Rg8 {[%clk 0:00:14.5]} 45... Kxh3 {[%clk
0:00:20.5]} 46. c4 {[%clk 0:00:16.1]} 46... Be7 {[%clk 0:00:20.2]} 47. Rg7
{[%clk 0:00:15.9]} 47... Bc5 {[%clk 0:00:21]} 48. Kxe5 {[%clk 0:00:14.2]} 48...
f3 {[%clk 0:00:21.2]} 49. Rf7 {[%clk 0:00:15.4]} 49... f2 {[%clk 0:00:21.9]} 50.
Kd5 {[%clk 0:00:16.9]} 50... Be3 {[%clk 0:00:08.3]} 51. c5 {[%clk 0:00:15.8]}
51... Kg2 {[%clk 0:00:09.5]} 52. c6 {[%clk 0:00:16.7]} 52... Bb6 {[%clk
0:00:10.5]} 53. Ke5 {[%clk 0:00:03.3]} 53... f1=Q {[%clk 0:00:10.7]} 54. Rxf1
{[%clk 0:00:05.1]} 54... Kxf1 {[%clk 0:00:12.6]} 55. Kf5 {[%clk 0:00:06.2]}
55... Ke2 {[%clk 0:00:13.8]} 56. Kg5 {[%clk 0:00:07.6]} 56... Kd3 {[%clk
0:00:15.1]} 57. Kxh5 {[%clk 0:00:09.2]} 57... Kc2 {[%clk 0:00:16.4]} 58. Kg6
{[%clk 0:00:11]} 58... Kxb3 {[%clk 0:00:17.5]} 59. Kf5 {[%clk 0:00:12.9]} 59...
Kxb2 {[%clk 0:00:19]} 60. Ke6 {[%clk 0:00:14.7]} 60... b3 {[%clk 0:00:19.6]} 61.
Kd7 {[%clk 0:00:16.6]} 61... Kc2 {[%clk 0:00:20.6]} 62. Kc8 {[%clk 0:00:18.5]}
62... b2 {[%clk 0:00:21.7]} 63. Kb7 {[%clk 0:00:20.3]} 63... b1=Q {[%clk
0:00:23.1]} 0-1

[Event "*** Biggest EVER Titled Tuesday"]
[Site "Chess.com"]
[Date "2018.04.17"]
[Round "1"]
[White "KNVB"]
[Black "Godzillator"]
[Result "0-1"]
[WhiteElo "2578"]
[BlackElo "2281"]
[TimeControl "180+2"]
[EndTime "13:10:15 PDT"]
[Termination "Godzillator won by resignation"]

1. d4 {[%clk 0:02:57.4]} 1... d5 {[%clk 0:03:00.5]} 2. Bf4 {[%clk 0:02:56.5]}
2... c5 {[%clk 0:03:01.2]} 3. e3 {[%clk 0:02:57.7]} 3... cxd4 {[%clk 0:03:02.1]}
4. exd4 {[%clk 0:02:58.8]} 4... Nc6 {[%clk 0:03:03.6]} 5. c3 {[%clk 0:02:59.9]}
5... Nf6 {[%clk 0:03:04.6]} 6. Nf3 {[%clk 0:03:01]} 6... Bg4 {[%clk 0:03:05.4]}
7. Nbd2 {[%clk 0:03:02]} 7... e6 {[%clk 0:03:06.4]} 8. Qb3 {[%clk 0:03:02.9]}
8... Qc8 {[%clk 0:03:06.8]} 9. h3 {[%clk 0:03:02.9]} 9... Bh5 {[%clk 0:03:07.3]}
10. Bd3 {[%clk 0:02:46.9]} 10... Be7 {[%clk 0:03:07.7]} 11. O-O {[%clk
0:02:47.6]} 11... O-O {[%clk 0:03:08.3]} 12. Rfe1 {[%clk 0:02:48.7]} 12... a6
{[%clk 0:03:07.8]} 13. a4 {[%clk 0:02:48.3]} 13... Bg6 {[%clk 0:03:05.2]} 14.
Bf1 {[%clk 0:02:32.5]} 14... Na5 {[%clk 0:02:56.4]} 15. Qd1 {[%clk 0:02:31.6]}
15... Ne4 {[%clk 0:02:49.5]} 16. Ne5 {[%clk 0:02:26.3]} 16... Nxd2 {[%clk
0:02:49.5]} 17. Nxg6 {[%clk 0:02:21.1]} 17... hxg6 {[%clk 0:02:47.3]} 18. Bxd2
{[%clk 0:02:22.1]} 18... Nc4 {[%clk 0:02:47.3]} 19. Bc1 {[%clk 0:02:21.7]} 19...
b5 {[%clk 0:02:46.3]} 20. axb5 {[%clk 0:01:40.7]} 20... axb5 {[%clk 0:02:47.2]}
21. Rxa8 {[%clk 0:01:41]} 21... Qxa8 {[%clk 0:02:48]} 22. b3 {[%clk 0:01:40.3]}
22... Nd6 {[%clk 0:02:47.7]} 23. Bd2 {[%clk 0:01:31.5]} 23... Rc8 {[%clk
0:02:43.1]} 24. f3 {[%clk 0:01:29.9]} 24... Qa2 {[%clk 0:02:40.4]} 25. Bd3
{[%clk 0:01:27]} 25... Ra8 {[%clk 0:02:14.6]} 26. Re2 {[%clk 0:01:13.1]} 26...
Qa1 {[%clk 0:02:12.1]} 27. Qxa1 {[%clk 0:01:04.3]} 27... Rxa1+ {[%clk
0:02:12.6]} 28. Kf2 {[%clk 0:01:06.2]} 28... Ra3 {[%clk 0:02:09.1]} 29. Bc2
{[%clk 0:01:04.3]} 29... Ra2 {[%clk 0:02:05.8]} 30. Bf4 {[%clk 0:00:58]} 30...
Rb2 {[%clk 0:02:00.5]} 31. Bc1 {[%clk 0:00:55.4]} 31... Ra2 {[%clk 0:02:00.6]}
32. Bd3 {[%clk 0:00:56.2]} 32... Ra1 {[%clk 0:01:54.7]} 33. Bf4 {[%clk
0:00:53.2]} 33... Ra3 {[%clk 0:01:55.3]} 34. Rb2 {[%clk 0:00:49.3]} 34... b4
{[%clk 0:01:50.8]} 35. cxb4 {[%clk 0:00:45.1]} 35... Nf5 {[%clk 0:01:51.8]} 36.
Bxf5 {[%clk 0:00:35.6]} 36... gxf5 {[%clk 0:01:50.9]} 37. b5 {[%clk 0:00:30.8]}
37... Ra5 {[%clk 0:01:50.6]} 38. b6 {[%clk 0:00:25.8]} 38... Rb5 {[%clk
0:01:51.5]} 39. Bc7 {[%clk 0:00:27.4]} 39... Bf6 {[%clk 0:01:51.8]} 40. Ke3
{[%clk 0:00:27.7]} 40... Kf8 {[%clk 0:01:45.3]} 41. b4 {[%clk 0:00:25.9]} 41...
Ke8 {[%clk 0:01:44.9]} 42. Kd3 {[%clk 0:00:27]} 42... Kd7 {[%clk 0:01:45.1]} 43.
Kc3 {[%clk 0:00:27.1]} 43... Bd8 {[%clk 0:01:45.2]} 44. Ra2 {[%clk 0:00:25.3]}
44... Bxc7 {[%clk 0:01:43.6]} 45. bxc7 {[%clk 0:00:27.2]} 45... Kxc7 {[%clk
0:01:44.3]} 46. Ra7+ {[%clk 0:00:28.3]} 46... Rb7 {[%clk 0:01:43.3]} 47. Ra8
{[%clk 0:00:20.1]} 47... Kd6 {[%clk 0:01:38.1]} 48. g4 {[%clk 0:00:19.3]} 48...
fxg4 {[%clk 0:01:34.8]} 49. hxg4 {[%clk 0:00:20.7]} 49... Rc7+ {[%clk
0:01:35.8]} 50. Kd3 {[%clk 0:00:22.1]} 50... Rc1 {[%clk 0:01:33.8]} 51. Ra3
{[%clk 0:00:21.6]} 51... g5 {[%clk 0:01:30.6]} 52. Ra6+ {[%clk 0:00:20.3]} 52...
Ke7 {[%clk 0:01:31.1]} 53. Ra7+ {[%clk 0:00:21.5]} 53... Kf6 {[%clk 0:01:32]}
54. Ra3 {[%clk 0:00:21.6]} 54... Ke7 {[%clk 0:01:26.7]} 55. Rc3 {[%clk
0:00:21.2]} 55... Rb1 {[%clk 0:01:26.4]} 56. Rc7+ {[%clk 0:00:20.3]} 56... Kd6
{[%clk 0:01:23.7]} 57. Rxf7 {[%clk 0:00:19.9]} 57... Rxb4 {[%clk 0:01:23.5]} 58.
Rg7 {[%clk 0:00:21.2]} 58... Rb3+ {[%clk 0:01:24.4]} 59. Ke2 {[%clk 0:00:22.5]}
59... Rb2+ {[%clk 0:01:24.3]} 60. Ke3 {[%clk 0:00:23.9]} 60... Rb3+ {[%clk
0:01:25.3]} 61. Kf2 {[%clk 0:00:23.3]} 61... Rd3 {[%clk 0:01:25.8]} 62. Rxg5
{[%clk 0:00:24.7]} 62... Rxd4 {[%clk 0:01:27.1]} 63. Rg8 {[%clk 0:00:26.2]}
63... Rf4 {[%clk 0:01:27.3]} 64. Ke3 {[%clk 0:00:25.3]} 64... e5 {[%clk
0:01:27.8]} 65. Rg6+ {[%clk 0:00:24.7]} 65... Ke7 {[%clk 0:01:28.2]} 66. Rg5
{[%clk 0:00:21.4]} 66... Kf6 {[%clk 0:01:28.7]} 67. Rh5 {[%clk 0:00:21.5]} 67...
d4+ {[%clk 0:01:28.8]} 68. Ke2 {[%clk 0:00:21.5]} 68... Ke6 {[%clk 0:01:28.8]}
69. Rh3 {[%clk 0:00:16.6]} 69... Kd5 {[%clk 0:01:28.3]} 70. g5 {[%clk
0:00:14.2]} 70... Rf8 {[%clk 0:01:29.1]} 71. g6 {[%clk 0:00:06.6]} 71... Rg8
{[%clk 0:01:25.5]} 72. Rg3 {[%clk 0:00:07.3]} 72... Ke6 {[%clk 0:01:25.5]} 73.
Kd3 {[%clk 0:00:06.5]} 73... Kf6 {[%clk 0:01:26.5]} 74. f4 {[%clk 0:00:05.4]}
74... exf4 {[%clk 0:01:26.9]} 75. Rf3 {[%clk 0:00:05.1]} 75... Kf5 {[%clk
0:01:26.7]} 76. Ke2 {[%clk 0:00:03.6]} 76... Rxg6 {[%clk 0:01:26.8]} 77. Rh3
{[%clk 0:00:04.7]} 77... Rg2+ {[%clk 0:01:26.6]} 78. Kf3 {[%clk 0:00:05.5]}
78... Rg3+ {[%clk 0:01:26.9]} 79. Rxg3 {[%clk 0:00:06.6]} 79... fxg3 {[%clk
0:01:28.2]} 80. Kxg3 {[%clk 0:00:08.2]} 80... Ke4 {[%clk 0:01:29.7]} 81. Kf2
{[%clk 0:00:09.7]} 81... Kd3 {[%clk 0:01:31.1]} 0-1

[Event "*** Biggest EVER Titled Tuesday"]
[Site "Chess.com"]
[Date "2018.04.17"]
[Round "1"]
[White "ENEASZ"]
[Black "Grootneus"]
[Result "1-0"]
[WhiteElo "2484"]
[BlackElo "2101"]
[TimeControl "180+2"]
[EndTime "13:10:20 PDT"]
[Termination "ENEASZ won by resignation"]

1. e4 {[%clk 0:03:00.9]} 1... c5 {[%clk 0:02:54.7]} 2. c3 {[%clk 0:03:01]} 2...
Nf6 {[%clk 0:02:54.9]} 3. e5 {[%clk 0:03:02]} 3... Nd5 {[%clk 0:02:55.5]} 4. d4
{[%clk 0:03:03.6]} 4... cxd4 {[%clk 0:02:57.4]} 5. Nf3 {[%clk 0:03:04.8]} 5...
d6 {[%clk 0:02:55.4]} 6. cxd4 {[%clk 0:02:53.8]} 6... Nc6 {[%clk 0:02:55.2]} 7.
Bc4 {[%clk 0:02:54.2]} 7... e6 {[%clk 0:02:54.1]} 8. O-O {[%clk 0:02:53.7]} 8...
Be7 {[%clk 0:02:53.5]} 9. a3 {[%clk 0:02:42.4]} 9... O-O {[%clk 0:02:52.9]} 10.
Qe2 {[%clk 0:02:43.3]} 10... b6 {[%clk 0:02:39.7]} 11. Rd1 {[%clk 0:02:41.4]}
11... Bb7 {[%clk 0:02:36.4]} 12. Bd3 {[%clk 0:02:38.8]} 12... Rc8 {[%clk
0:02:33.3]} 13. Qe4 {[%clk 0:02:36.4]} 13... g6 {[%clk 0:02:33.9]} 14. Bh6
{[%clk 0:02:36.8]} 14... Re8 {[%clk 0:02:31.8]} 15. Nbd2 {[%clk 0:02:38.1]}
15... Na5 {[%clk 0:02:27.5]} 16. Qg4 {[%clk 0:02:25.2]} 16... dxe5 {[%clk
0:02:05.7]} 17. Nxe5 {[%clk 0:01:10.6]} 17... Nf6 {[%clk 0:01:12.2]} 18. Qf4
{[%clk 0:01:11.2]} 18... Nc6 {[%clk 0:01:10.4]} 19. Ndf3 {[%clk 0:01:11.1]}
19... Bd6 {[%clk 0:00:58.9]} 20. Bg5 {[%clk 0:01:04]} 20... Be7 {[%clk
0:00:54.2]} 21. Bb5 {[%clk 0:01:01.8]} 21... a6 {[%clk 0:00:46.4]} 22. Nxc6
{[%clk 0:01:02]} 22... Bxc6 {[%clk 0:00:48.3]} 23. Bxa6 {[%clk 0:01:02.9]} 23...
Ra8 {[%clk 0:00:46.9]} 24. Be2 {[%clk 0:01:01.7]} 24... Nd5 {[%clk 0:00:32.7]}
25. Qh4 {[%clk 0:00:55.7]} 25... Bxg5 {[%clk 0:00:22.4]} 26. Nxg5 {[%clk
0:00:57.6]} 26... h5 {[%clk 0:00:23.7]} 27. Rac1 {[%clk 0:00:54.1]} 27... Rc8
{[%clk 0:00:22]} 28. Bxh5 {[%clk 0:00:48.4]} 28... gxh5 {[%clk 0:00:19.2]} 29.
Qxh5 {[%clk 0:00:50.3]} 29... Qf6 {[%clk 0:00:20.1]} 30. Qh7+ {[%clk 0:00:40.1]}
30... Kf8 {[%clk 0:00:20.5]} 31. Ne4 {[%clk 0:00:42]} 31... Qg6 {[%clk
0:00:19.4]} 32. Qxg6 {[%clk 0:00:42.5]} 32... fxg6 {[%clk 0:00:20.6]} 33. Nd6
{[%clk 0:00:44.4]} 33... Nf4 {[%clk 0:00:21.2]} 34. Rd2 {[%clk 0:00:28.8]} 34...
Red8 {[%clk 0:00:05.8]} 35. Nxc8 {[%clk 0:00:28.3]} 35... Rxc8 {[%clk
0:00:07.7]} 36. Rdc2 {[%clk 0:00:17.8]} 36... Rd8 {[%clk 0:00:06.3]} 37. Rxc6
{[%clk 0:00:16.2]} 37... Ne2+ {[%clk 0:00:07.6]} 38. Kf1 {[%clk 0:00:17.4]}
38... Nxc1 {[%clk 0:00:09]} 39. Rxc1 {[%clk 0:00:19.2]} 39... Rxd4 {[%clk
0:00:10.5]} 40. Ke2 {[%clk 0:00:19.3]} 40... Ke7 {[%clk 0:00:09.2]} 41. Rc3
{[%clk 0:00:19.6]} 41... Rd5 {[%clk 0:00:09.8]} 42. Rd3 {[%clk 0:00:20.2]} 42...
Rb5 {[%clk 0:00:10.8]} 43. b4 {[%clk 0:00:21.3]} 43... Kf6 {[%clk 0:00:11.3]}
44. f4 {[%clk 0:00:21.8]} 44... Kf5 {[%clk 0:00:12.5]} 45. Kf3 {[%clk
0:00:22.4]} 45... g5 {[%clk 0:00:13.2]} 46. g4+ {[%clk 0:00:22.5]} 46... Kf6
{[%clk 0:00:13.7]} 47. Rd6 {[%clk 0:00:23]} 47... gxf4 {[%clk 0:00:13.3]} 48.
Kxf4 {[%clk 0:00:24.9]} 48... Re5 {[%clk 0:00:13.7]} 49. Rxb6 {[%clk 0:00:24.6]}
49... Re2 {[%clk 0:00:15.3]} 50. h4 {[%clk 0:00:23.2]} 50... Ra2 {[%clk
0:00:15.1]} 51. Ra6 {[%clk 0:00:23.4]} 51... Rf2+ {[%clk 0:00:16.7]} 52. Kg3
{[%clk 0:00:24.2]} 52... Ra2 {[%clk 0:00:17.7]} 53. b5 {[%clk 0:00:24.3]} 53...
Kf7 {[%clk 0:00:19.1]} 54. g5 {[%clk 0:00:23.4]} 54... e5 {[%clk 0:00:20.5]} 55.
h5 {[%clk 0:00:19.6]} 55... Rb2 {[%clk 0:00:20.6]} 56. a4 {[%clk 0:00:18.6]}
56... Rb1 {[%clk 0:00:13.1]} 57. h6 {[%clk 0:00:16.6]} 57... Rg1+ {[%clk
0:00:11.3]} 58. Kf3 {[%clk 0:00:15.3]} 58... Rxg5 {[%clk 0:00:12.1]} 59. Ke4
{[%clk 0:00:16.6]} 59... Rh5 {[%clk 0:00:07.7]} 60. h7 {[%clk 0:00:18]} 60...
Ke8 {[%clk 0:00:05.8]} 61. h8=Q+ {[%clk 0:00:18]} 61... Rxh8 {[%clk 0:00:07.4]}
62. Ra8+ {[%clk 0:00:19.5]} 62... Kd7 {[%clk 0:00:09.3]} 63. Rxh8 {[%clk
0:00:20.9]} 1-0

[Event "*** Biggest EVER Titled Tuesday"]
[Site "Chess.com"]
[Date "2018.04.17"]
[Round "1"]
[White "KRASAVCHIK2002"]
[Black "Didici"]
[Result "0-1"]
[WhiteElo "1984"]
[BlackElo "2449"]
[TimeControl "180+2"]
[EndTime "13:10:24 PDT"]
[Termination "Didici won by resignation"]

1. e4 {[%clk 0:03:01.9]} 1... e5 {[%clk 0:03:00.8]} 2. Nf3 {[%clk 0:03:00.8]}
2... Nc6 {[%clk 0:03:02.3]} 3. Bb5 {[%clk 0:02:54]} 3... a6 {[%clk 0:02:55.4]}
4. Ba4 {[%clk 0:02:54.1]} 4... Nf6 {[%clk 0:02:55.7]} 5. O-O {[%clk 0:02:49.7]}
5... b5 {[%clk 0:02:57.1]} 6. Bb3 {[%clk 0:02:50.1]} 6... Bb7 {[%clk 0:02:58.6]}
7. a4 {[%clk 0:02:49.7]} 7... Nxe4 {[%clk 0:02:58.1]} 8. Re1 {[%clk 0:02:34.9]}
8... Nc5 {[%clk 0:02:53.6]} 9. axb5 {[%clk 0:02:32.1]} 9... axb5 {[%clk
0:02:50.6]} 10. Rxa8 {[%clk 0:02:31.9]} 10... Bxa8 {[%clk 0:02:47.8]} 11. Nxe5
{[%clk 0:02:28.9]} 11... Nxe5 {[%clk 0:02:47.5]} 12. Rxe5+ {[%clk 0:02:30.8]}
12... Be7 {[%clk 0:02:48.6]} 13. Ba2 {[%clk 0:02:27.1]} 13... d6 {[%clk
0:02:47.6]} 14. Re1 {[%clk 0:02:25]} 14... O-O {[%clk 0:02:09.2]} 15. d4 {[%clk
0:02:22.6]} 15... Ne4 {[%clk 0:02:09.9]} 16. Nc3 {[%clk 0:02:18.7]} 16... Nxc3
{[%clk 0:02:08.6]} 17. bxc3 {[%clk 0:02:20.1]} 17... Bg5 {[%clk 0:02:08.2]} 18.
Qg4 {[%clk 0:02:18.1]} 18... Bxc1 {[%clk 0:02:01.6]} 19. Rxc1 {[%clk 0:02:19.7]}
19... Qe7 {[%clk 0:01:53.5]} 20. Bb3 {[%clk 0:02:10.9]} 20... g6 {[%clk
0:01:48]} 21. Ra1 {[%clk 0:02:04.1]} 21... Bc6 {[%clk 0:01:48.9]} 22. h3 {[%clk
0:01:56.1]} 22... Kg7 {[%clk 0:01:15.3]} 23. Qf4 {[%clk 0:01:33.5]} 23... g5
{[%clk 0:01:06]} 24. Qe3 {[%clk 0:01:33.9]} 24... Qxe3 {[%clk 0:01:04.3]} 25.
fxe3 {[%clk 0:01:35.4]} 25... Ra8 {[%clk 0:01:00.1]} 26. Rxa8 {[%clk 0:01:35.4]}
26... Bxa8 {[%clk 0:01:02]} 27. g3 {[%clk 0:01:31.9]} 27... Be4 {[%clk
0:00:59.7]} 28. Kf2 {[%clk 0:01:32.2]} 28... d5 {[%clk 0:00:59.9]} 29. Ba2
{[%clk 0:01:28.6]} 29... c6 {[%clk 0:01:00.1]} 30. Bb3 {[%clk 0:01:26.6]} 30...
Kg6 {[%clk 0:00:58]} 31. Kg1 {[%clk 0:01:24.8]} 31... h5 {[%clk 0:00:53.6]} 32.
Kf1 {[%clk 0:01:23]} 32... h4 {[%clk 0:00:46.9]} 33. Kf2 {[%clk 0:01:20.1]}
33... hxg3+ {[%clk 0:00:47.4]} 34. Kxg3 {[%clk 0:01:21.6]} 34... Kh5 {[%clk
0:00:49.3]} 35. Ba2 {[%clk 0:01:18.5]} 35... Bxc2 {[%clk 0:00:47.4]} 36. e4
{[%clk 0:01:06.6]} 36... Bxe4 {[%clk 0:00:44.4]} 37. Bb3 {[%clk 0:01:03]} 37...
f5 {[%clk 0:00:40.9]} 38. Bd1+ {[%clk 0:00:58.4]} 38... Kg6 {[%clk 0:00:40.4]}
39. Kh2 {[%clk 0:00:56.2]} 39... f4 {[%clk 0:00:34.9]} 40. Kg1 {[%clk
0:00:50.3]} 40... Kf6 {[%clk 0:00:31.1]} 41. Kh2 {[%clk 0:00:45.4]} 41... Ke7
{[%clk 0:00:31.1]} 42. Be2 {[%clk 0:00:38.3]} 42... Kd6 {[%clk 0:00:30.1]} 43.
h4 {[%clk 0:00:32.8]} 43... gxh4 {[%clk 0:00:27]} 44. Kh3 {[%clk 0:00:33.6]}
44... Kc7 {[%clk 0:00:22]} 45. Kxh4 {[%clk 0:00:33.2]} 45... f3 {[%clk
0:00:18.1]} 46. Bf1 {[%clk 0:00:33.9]} 46... Kb6 {[%clk 0:00:18.7]} 47. Kg3
{[%clk 0:00:31.6]} 47... c5 {[%clk 0:00:19.6]} 48. dxc5+ {[%clk 0:00:29.5]}
48... Kxc5 {[%clk 0:00:21.5]} 49. Kf2 {[%clk 0:00:28.4]} 49... b4 {[%clk
0:00:12.1]} 50. cxb4+ {[%clk 0:00:28.5]} 50... Kxb4 {[%clk 0:00:14]} 51. Ke3
{[%clk 0:00:27.6]} 51... Kc3 {[%clk 0:00:14.8]} 52. Bb5 {[%clk 0:00:26.3]} 52...
Kc2 {[%clk 0:00:15.4]} 53. Ba4+ {[%clk 0:00:23.8]} 53... Kc1 {[%clk 0:00:15.2]}
54. Bb3 {[%clk 0:00:23.6]} 54... Kb2 {[%clk 0:00:14.7]} 55. Ba4 {[%clk
0:00:24.8]} 55... Kc3 {[%clk 0:00:15.1]} 56. Bb5 {[%clk 0:00:25.6]} 56... Kb4
{[%clk 0:00:16.3]} 57. Bf1 {[%clk 0:00:26.2]} 57... Kc5 {[%clk 0:00:16.9]} 58.
Ba6 {[%clk 0:00:25.9]} 58... Kd6 {[%clk 0:00:18]} 59. Bf1 {[%clk 0:00:26.4]}
59... Ke5 {[%clk 0:00:19.6]} 60. Kf2 {[%clk 0:00:24.1]} 60... d4 {[%clk
0:00:20.9]} 61. Bc4 {[%clk 0:00:24.5]} 61... Kf4 {[%clk 0:00:22.1]} 62. Bf1
{[%clk 0:00:24]} 62... d3 {[%clk 0:00:23.5]} 63. Ke1 {[%clk 0:00:22.6]} 63...
Ke3 {[%clk 0:00:24.4]} 64. Be2 {[%clk 0:00:21.3]} 64... f2+ {[%clk 0:00:24.3]}
0-1